{"text_format":"3","workbook":"xlsx","n_sheets":3,"sheets":["Sākums","Dāvanu budžets un izsekotājs","Dati"],"not_rendered":{"charts":1,"defined_names":1},"read":"whole","date_system":"1900"}

{"sheet":"Sākums","index":0,"n_rows":7,"n_cols":2,"rows_kept":7}
[null,"Par veidni"]
[null,"Izmantojiet šo veidni, lai reģistrētu savus dāvanu pirkumus un izsekotu tos attiecībā pret budžetu."]
[null,"Tabulā ievadiet ģimenes locekļu un draugu vārdus, dāvanas, budžetā iekļautās un iztērētās summas un piezīmes, kā izvēlieties notikumu un pasākuma mēnesi."]
[null,"Ikmēneša pārskata diagramma tiek atjaunināta automātiski."]
[null,"Piezīme: "]
[null,"Papildu norādījumi ir sniegti kolonnā A darblapā DĀVANU BUDŽETS UN IZSEKOTĀJS. Šis teksts ir paslēpts ar nolūku. Lai tekstu noņemtu, atlasiet kolonnu A, pēc tam atlasiet DZĒST. Lai parādītu slēpto tekstu, atlasiet kolonnu A, pēc tam nomainiet fonta krāsu."]
[null,"Lai iegūtu papildinformāciju par tabulu, tabulā nospiediet taustiņu SHIFT un pēc tam F10, atlasiet opciju TABULA un pēc tam atlasiet ALTERNATĪVAIS TEKSTS."]

{"sheet":"Dāvanu budžets un izsekotājs","index":1,"n_rows":10,"n_cols":13,"rows_kept":10,"merged":[[0,1,0,4],[0,5,0,12],[1,1,1,2],[2,1,2,12],[3,1,3,3]]}
["Izveidojiet personisku dāvanu budžetu un izsekotāju šajā darblapā. Šūnā pa labi ir šīs darblapas virsraksts un padoms ir šūnā F1. Noderīgi norādījumi par to, kā lietot šo darblapu, ir šīs kolonnas šūnās.","Dāvanu budžets un izsekotājs",{"$nulls":3},"Ievadiet tik daudz informācijas, cik varat, katra jaunā gada sākumā. Ievadiet ģimenes locekļu un draugu vārdus, izvēlieties dāvināšanas notikumu, atlasiet pasākuma mēnesi un ierakstiet, cik daudz naudas vēlaties tērēt. Katra persona tabulā var parādīties vairākkārt dažādos notikumos (dzimšanas dienā, svētkos, raudzībās utt.)."]
["Ikmēneša pārskata etiķete ir šūnā pa labi un padoms ir šūnā D2.","Ikmēneša pārskats",null,"Izmantojiet diagrammu, lai aplūkotu nākamos mēnešus un plānotu uz priekšu. Reģistrējiet savus pirkumus, lai tos izsekotu salīdzinājumā ar budžetu."]
["Šūnā pa labi ir budžetā iekļauto summu stabiņu diagramma ar pārklātu iztērētās summas līniju diagrammu.","Šajā šūnā atrodas budžetā iekļauto summu stabiņu diagramma ar pārklātu iztērētās summas līniju diagrammu."]
["Šūnā pa labi ir dāvanu budžeta un izsekotāja etiķete.","Dāvanu budžets un izsekotājs"]
["Ievadiet detalizētu informāciju tabulā Budžeta izsekotājs, sākot ar labajā pusē esošo šūnu.","Kas","Notikums","Mēnesis","Summa\nbudžetā","Summa\niztērēts","Dāvana","Saite uz dāvanu","Veikalā/\nTiešsaistē","Iegādāta?","Iesaiņota?","Piegādāta?","Piezīmes"]
[null,"1. vārds","Dzimšanas dienas","Jūnijs",{"v":50,"d":"50 EUR"},{"v":30,"d":"30 EUR"},"Apavi","Pārdevējs","Tiešsaistē","Jā","Nē","Nē","6/16, kino biļetes"]
[null,"2. vārds","Gadadienas","Aprīlis",{"v":20,"d":"20 EUR"},{"v":20,"d":"20 EUR"},"Kaķis","Pārdevējs","Veikalā","Nē","Nē","Nē","Viņš pieminēja, ka viņam patīk suņi"]
[null,"3. vārds","Svētki","Jūlijs",{"v":50,"d":"50 EUR"},{"v":70,"d":"70 EUR"},"Austiņas","Pārdevējs","Tiešsaistē","Nē","Nē","Nē","Kopmītņu lietas"]
[null,"4. vārds","Dzimšanas dienas","Janvāris",{"v":20,"d":"20 EUR"},{"v":30,"d":"30 EUR"},"Spēle","Pārdevējs","Veikalā","Jā","Jā","Jā"]
[null,"5. vārds","Kāzas","Jūnijs",{"v":100,"d":"100 EUR"},{"v":150,"d":"150 EUR"},"Kristāla vāze","Pārdevējs","Veikalā","Jā","Jā","Nē"]

{"sheet":"Dati","index":2,"n_rows":13,"n_cols":8,"rows_kept":13,"hidden":true}
["Notikumi",null,"Datums","Datums","Summa budžetā\nDzimšanas dienas","Summa budžetā\nSvētki","Summa budžetā\nCiti","Iztērētā summa"]
["Dzimšanas dienas",null,"Janvāris","Janv.",{"$f":"SUMIFS(BudžetaIzsekotājs[Summa\nbudžetā],BudžetaIzsekotājs[Mēnesis],\"Janvāris\",BudžetaIzsekotājs[Notikums],\"Dzimšanas dienas\")","v":{"v":20,"d":"20 EUR"}},{"$f":"SUMIFS(BudžetaIzsekotājs[Summa\nbudžetā],BudžetaIzsekotājs[Mēnesis],\"Janvāris\",BudžetaIzsekotājs[Notikums],\"Svētki\")","v":{"v":0,"d":"0 EUR"}},{"$f":"SUMIFS(BudžetaIzsekotājs[Summa\nbudžetā],BudžetaIzsekotājs[Mēnesis],\"Janvāris\",BudžetaIzsekotājs[Notikums],\"<>Svētki\",BudžetaIzsekotājs[Notikums],\"<>Dzimšanas dienas\")","v":{"v":0,"d":"0 EUR"}},{"$f":"SUMIFS(BudžetaIzsekotājs[Summa\niztērēts],BudžetaIzsekotājs[Mēnesis],\"Janvāris\")","v":{"v":30,"d":"30 EUR"}}]
["Svētki",null,"Februāris","Febr.",{"$f":"SUMIFS(BudžetaIzsekotājs[Summa\nbudžetā],BudžetaIzsekotājs[Mēnesis],\"Februāris\",BudžetaIzsekotājs[Notikums],\"Dzimšanas dienas\")","v":{"v":0,"d":"0 EUR"}},{"$f":"SUMIFS(BudžetaIzsekotājs[Summa\nbudžetā],BudžetaIzsekotājs[Mēnesis],\"Februāris\",BudžetaIzsekotājs[Notikums],\"Svētki\")","v":{"v":0,"d":"0 EUR"}},{"$f":"SUMIFS(BudžetaIzsekotājs[Summa\nbudžetā],BudžetaIzsekotājs[Mēnesis],\"Februāris\",BudžetaIzsekotājs[Notikums],\"<>Svētki\",BudžetaIzsekotājs[Notikums],\"<>Dzimšanas dienas\")","v":{"v":0,"d":"0 EUR"}},{"$f":"SUMIFS(BudžetaIzsekotājs[Summa\niztērēts],BudžetaIzsekotājs[Mēnesis],\"Februāris\")","v":{"v":0,"d":"0 EUR"}}]
["Gadadienas",null,"Marts","Marts",{"$f":"SUMIFS(BudžetaIzsekotājs[Summa\nbudžetā],BudžetaIzsekotājs[Mēnesis],\"Marts\",BudžetaIzsekotājs[Notikums],\"Dzimšanas dienas\")","v":{"v":0,"d":"0 EUR"}},{"$f":"SUMIFS(BudžetaIzsekotājs[Summa\nbudžetā],BudžetaIzsekotājs[Mēnesis],\"Marts\",BudžetaIzsekotājs[Notikums],\"Svētki\")","v":{"v":0,"d":"0 EUR"}},{"$f":"SUMIFS(BudžetaIzsekotājs[Summa\nbudžetā],BudžetaIzsekotājs[Mēnesis],\"Marts\",BudžetaIzsekotājs[Notikums],\"<>Svētki\",BudžetaIzsekotājs[Notikums],\"<>Dzimšanas dienas\")","v":{"v":0,"d":"0 EUR"}},{"$f":"SUMIFS(BudžetaIzsekotājs[Summa\niztērēts],BudžetaIzsekotājs[Mēnesis],\"Marts\")","v":{"v":0,"d":"0 EUR"}}]
["Kāzas",null,"Aprīlis","Apr.",{"$f":"SUMIFS(BudžetaIzsekotājs[Summa\nbudžetā],BudžetaIzsekotājs[Mēnesis],\"Aprīlis\",BudžetaIzsekotājs[Notikums],\"Dzimšanas dienas\")","v":{"v":0,"d":"0 EUR"}},{"$f":"SUMIFS(BudžetaIzsekotājs[Summa\nbudžetā],BudžetaIzsekotājs[Mēnesis],\"Aprīlis\",BudžetaIzsekotājs[Notikums],\"Svētki\")","v":{"v":0,"d":"0 EUR"}},{"$f":"SUMIFS(BudžetaIzsekotājs[Summa\nbudžetā],BudžetaIzsekotājs[Mēnesis],\"Aprīlis\",BudžetaIzsekotājs[Notikums],\"<>Svētki\",BudžetaIzsekotājs[Notikums],\"<>Dzimšanas dienas\")","v":{"v":20,"d":"20 EUR"}},{"$f":"SUMIFS(BudžetaIzsekotājs[Summa\niztērēts],BudžetaIzsekotājs[Mēnesis],\"Aprīlis\")","v":{"v":20,"d":"20 EUR"}}]
["Līgavas apdāvināšanas ballītes",null,"Maijs","Maijs",{"$f":"SUMIFS(BudžetaIzsekotājs[Summa\nbudžetā],BudžetaIzsekotājs[Mēnesis],\"Maijs\",BudžetaIzsekotājs[Notikums],\"Dzimšanas dienas\")","v":{"v":0,"d":"0 EUR"}},{"$f":"SUMIFS(BudžetaIzsekotājs[Summa\nbudžetā],BudžetaIzsekotājs[Mēnesis],\"Maijs\",BudžetaIzsekotājs[Notikums],\"Svētki\")","v":{"v":0,"d":"0 EUR"}},{"$f":"SUMIFS(BudžetaIzsekotājs[Summa\nbudžetā],BudžetaIzsekotājs[Mēnesis],\"Maijs\",BudžetaIzsekotājs[Notikums],\"<>Svētki\",BudžetaIzsekotājs[Notikums],\"<>Dzimšanas dienas\")","v":{"v":0,"d":"0 EUR"}},{"$f":"SUMIFS(BudžetaIzsekotājs[Summa\niztērēts],BudžetaIzsekotājs[Mēnesis],\"Maijs\")","v":{"v":0,"d":"0 EUR"}}]
["Mazuļa raudzības",null,"Jūnijs","Jūn.",{"$f":"SUMIFS(BudžetaIzsekotājs[Summa\nbudžetā],BudžetaIzsekotājs[Mēnesis],\"Jūnijs\",BudžetaIzsekotājs[Notikums],\"Dzimšanas dienas\")","v":{"v":50,"d":"50 EUR"}},{"$f":"SUMIFS(BudžetaIzsekotājs[Summa\nbudžetā],BudžetaIzsekotājs[Mēnesis],\"Jūnijs\",BudžetaIzsekotājs[Notikums],\"Svētki\")","v":{"v":0,"d":"0 EUR"}},{"$f":"SUMIFS(BudžetaIzsekotājs[Summa\nbudžetā],BudžetaIzsekotājs[Mēnesis],\"Jūnijs\",BudžetaIzsekotājs[Notikums],\"<>Svētki\",BudžetaIzsekotājs[Notikums],\"<>Dzimšanas dienas\")","v":{"v":100,"d":"100 EUR"}},{"$f":"SUMIFS(BudžetaIzsekotājs[Summa\niztērēts],BudžetaIzsekotājs[Mēnesis],\"Jūnijs\")","v":{"v":180,"d":"180 EUR"}}]
["Izlaidumi",null,"Jūlijs","Jūl.",{"$f":"SUMIFS(BudžetaIzsekotājs[Summa\nbudžetā],BudžetaIzsekotājs[Mēnesis],\"Jūlijs\",BudžetaIzsekotājs[Notikums],\"Dzimšanas dienas\")","v":{"v":0,"d":"0 EUR"}},{"$f":"SUMIFS(BudžetaIzsekotājs[Summa\nbudžetā],BudžetaIzsekotājs[Mēnesis],\"Jūlijs\",BudžetaIzsekotājs[Notikums],\"Svētki\")","v":{"v":50,"d":"50 EUR"}},{"$f":"SUMIFS(BudžetaIzsekotājs[Summa\nbudžetā],BudžetaIzsekotājs[Mēnesis],\"Jūlijs\",BudžetaIzsekotājs[Notikums],\"<>Svētki\",BudžetaIzsekotājs[Notikums],\"<>Dzimšanas dienas\")","v":{"v":0,"d":"0 EUR"}},{"$f":"SUMIFS(BudžetaIzsekotājs[Summa\niztērēts],BudžetaIzsekotājs[Mēnesis],\"Jūlijs\")","v":{"v":70,"d":"70 EUR"}}]
["Citi",null,"Augusts","Aug.",{"$f":"SUMIFS(BudžetaIzsekotājs[Summa\nbudžetā],BudžetaIzsekotājs[Mēnesis],\"Augusts\",BudžetaIzsekotājs[Notikums],\"Dzimšanas dienas\")","v":{"v":0,"d":"0 EUR"}},{"$f":"SUMIFS(BudžetaIzsekotājs[Summa\nbudžetā],BudžetaIzsekotājs[Mēnesis],\"Augusts\",BudžetaIzsekotājs[Notikums],\"Svētki\")","v":{"v":0,"d":"0 EUR"}},{"$f":"SUMIFS(BudžetaIzsekotājs[Summa\nbudžetā],BudžetaIzsekotājs[Mēnesis],\"Augusts\",BudžetaIzsekotājs[Notikums],\"<>Svētki\",BudžetaIzsekotājs[Notikums],\"<>Dzimšanas dienas\")","v":{"v":0,"d":"0 EUR"}},{"$f":"SUMIFS(BudžetaIzsekotājs[Summa\niztērēts],BudžetaIzsekotājs[Mēnesis],\"Augusts\")","v":{"v":0,"d":"0 EUR"}}]
[null,null,"Septembris","Sept.",{"$f":"SUMIFS(BudžetaIzsekotājs[Summa\nbudžetā],BudžetaIzsekotājs[Mēnesis],\"Septembris\",BudžetaIzsekotājs[Notikums],\"Dzimšanas dienas\")","v":{"v":0,"d":"0 EUR"}},{"$f":"SUMIFS(BudžetaIzsekotājs[Summa\nbudžetā],BudžetaIzsekotājs[Mēnesis],\"Septembris\",BudžetaIzsekotājs[Notikums],\"Svētki\")","v":{"v":0,"d":"0 EUR"}},{"$f":"SUMIFS(BudžetaIzsekotājs[Summa\nbudžetā],BudžetaIzsekotājs[Mēnesis],\"Septembris\",BudžetaIzsekotājs[Notikums],\"<>Svētki\",BudžetaIzsekotājs[Notikums],\"<>Dzimšanas dienas\")","v":{"v":0,"d":"0 EUR"}},{"$f":"SUMIFS(BudžetaIzsekotājs[Summa\niztērēts],BudžetaIzsekotājs[Mēnesis],\"Septembris\")","v":{"v":0,"d":"0 EUR"}}]
[null,null,"Oktobris","Okt.",{"$f":"SUMIFS(BudžetaIzsekotājs[Summa\nbudžetā],BudžetaIzsekotājs[Mēnesis],\"Oktobris\",BudžetaIzsekotājs[Notikums],\"Dzimšanas dienas\")","v":{"v":0,"d":"0 EUR"}},{"$f":"SUMIFS(BudžetaIzsekotājs[Summa\nbudžetā],BudžetaIzsekotājs[Mēnesis],\"Oktobris\",BudžetaIzsekotājs[Notikums],\"Svētki\")","v":{"v":0,"d":"0 EUR"}},{"$f":"SUMIFS(BudžetaIzsekotājs[Summa\nbudžetā],BudžetaIzsekotājs[Mēnesis],\"Oktobris\",BudžetaIzsekotājs[Notikums],\"<>Svētki\",BudžetaIzsekotājs[Notikums],\"<>Dzimšanas dienas\")","v":{"v":0,"d":"0 EUR"}},{"$f":"SUMIFS(BudžetaIzsekotājs[Summa\niztērēts],BudžetaIzsekotājs[Mēnesis],\"Oktobris\")","v":{"v":0,"d":"0 EUR"}}]
[null,null,"Novembris","Nov.",{"$f":"SUMIFS(BudžetaIzsekotājs[Summa\nbudžetā],BudžetaIzsekotājs[Mēnesis],\"Novembris\",BudžetaIzsekotājs[Notikums],\"Dzimšanas dienas\")","v":{"v":0,"d":"0 EUR"}},{"$f":"SUMIFS(BudžetaIzsekotājs[Summa\nbudžetā],BudžetaIzsekotājs[Mēnesis],\"Novembris\",BudžetaIzsekotājs[Notikums],\"Svētki\")","v":{"v":0,"d":"0 EUR"}},{"$f":"SUMIFS(BudžetaIzsekotājs[Summa\nbudžetā],BudžetaIzsekotājs[Mēnesis],\"Novembris\",BudžetaIzsekotājs[Notikums],\"<>Svētki\",BudžetaIzsekotājs[Notikums],\"<>Dzimšanas dienas\")","v":{"v":0,"d":"0 EUR"}},{"$f":"SUMIFS(BudžetaIzsekotājs[Summa\niztērēts],BudžetaIzsekotājs[Mēnesis],\"Novembris\")","v":{"v":0,"d":"0 EUR"}}]
[null,null,"Decembris","Dec.",{"$f":"SUMIFS(BudžetaIzsekotājs[Summa\nbudžetā],BudžetaIzsekotājs[Mēnesis],\"Decembris\",BudžetaIzsekotājs[Notikums],\"Dzimšanas dienas\")","v":{"v":0,"d":"0 EUR"}},{"$f":"SUMIFS(BudžetaIzsekotājs[Summa\nbudžetā],BudžetaIzsekotājs[Mēnesis],\"Decembris\",BudžetaIzsekotājs[Notikums],\"Svētki\")","v":{"v":0,"d":"0 EUR"}},{"$f":"SUMIFS(BudžetaIzsekotājs[Summa\nbudžetā],BudžetaIzsekotājs[Mēnesis],\"Decembris\",BudžetaIzsekotājs[Notikums],\"<>Svētki\",BudžetaIzsekotājs[Notikums],\"<>Dzimšanas dienas\")","v":{"v":0,"d":"0 EUR"}},{"$f":"SUMIFS(BudžetaIzsekotājs[Summa\niztērēts],BudžetaIzsekotājs[Mēnesis],\"Decembris\")","v":{"v":0,"d":"0 EUR"}}]